Cogmind - Beta 13 @@@ ROGUE MODE // 2024.04.15 @ 13:09:33 Player: BagelsSniperWolf Result: Destroyed by G-34 Mercenary with Small Laser Performance ------------- Evolutions (1) 500 Regions Visited (2) 400 Robots Destroyed (8) 40 Value Destroyed (190) 190 Prototype IDs (2) 40 Alien Tech Used (0) 0 Bonus (0) 0 TOTAL SCORE: 1170 Bonus ------- None Cogmind --------- Core Integrity 0/400 Matter 290/300 Energy 96/100 System Corruption 0% Temperature Cool (6) Movement Hovering (240) Ox3 Location -9/Materials Parts ------- > --- POWER (2) -------- (None) > --- PROPULSION (2) --- Hover Unit > --- UTILITY (3) ------ Medium Storage Unit Medium Storage Unit > --- WEAPON (2) ------- (None) > --- INVENTORY (10) --- (None) Peak State ------------ > --- POWER ------------ Light Ion Engine > --- PROPULSION ------- Light Treads > --- UTILITY ---------- Small Storage Unit Medium Storage Unit Medium Storage Unit > --- WEAPON ----------- Beam Rifle Light Assault Rifle > --- INVENTORY -------- (None) [Rating: 8] Favorites ----------- Power Light Ion Engine Engine Light Ion Engine Propulsion Light Treads Treads Light Treads Wheel Compact Wheel Hover Unit Hover Unit Utility Small Storage Unit Device Shield Generator Storage Small Storage Unit Weapon Light Assault Rifle Energy Gun EM Pulse Gun Ballistic Gun Light Assault Rifle Build | -11 -10 -9 ------- Run | Yrd Mat Mat Slots Evolved 2 | . . 2 Power 1 | . . 1 Propulsion . | . . . Utility 1 | . . 1 Weapon . | . . . Parts Attached 22 | 8 1 13 Power 5 | 3 . 2 Engine 5 | 3 . 2 Core . | . . . Reactor . | . . . Propulsion 6 | 2 . 4 Treads 3 | . . 3 Leg . | . . . Wheel 2 | 2 . . Hover 1 | . . 1 Flight . | . . . Utility 5 | 1 1 3 Device 2 | . 1 1 Storage 3 | 1 . 2 Processor . | . . . Hackware . | . . . Protection . | . . . Artifact . | . . . Weapon 6 | 2 . 4 Energy Gun 3 | 1 . 2 Energy Cannon . | . . . Ballistic Gun 3 | 1 . 2 Ballistic Cannon . | . . . Launcher . | . . . Special Weapon . | . . . Impact Weapon . | . . . Slashing Weapon . | . . . Piercing Weapon . | . . . Special Melee Weapon . | . . . Unidentified Prototypes . | . . . Parts Lost 17 | . 6 11 Power 3 | . 1 2 Propulsion 5 | . 2 3 Utility 3 | . 1 2 Weapon 6 | . 2 4 Highest Loss Streak 6 | . 6 6 To Critical Strikes . | . . . Average Slot Usage (%) 55 | . 77 46 Engine 8 | . 12 6 Treads 8 | . . 12 Wheel 7 | . 23 . Device 3 | . 2 3 Storage 13 | . 14 13 Energy Gun 6 | . 11 4 Ballistic Gun 6 | . 12 4 Naked Turns . | . . . Heaviest Build 32 | 11 12 32 Greatest Support 40 | 32 32 40 Greatest Overweight (x) 6 | . 1 6 Average Overweight (x) . | . . . Largest Inventory Capacity 10 | 8 8 10 Average Capacity 8 | 6 8 8 Most Carried 4 | 3 4 4 Average Carried 1 | 1 3 . Final Capacity 10 | 8 8 10 Final Carried 3 | 3 3 . Class Distribution -------------------- 81% | Mutant 18% | Scavenger-Mutant Dominant Class ---------------- Mutant | -10/Materials Mutant | -9/Materials Resources | -11 -10 -9 ----------- Run | Yrd Mat Mat Matter Collected 366 | 215 50 101 Remotely . | . . . Salvage Created 223 | . 50 173 Parts 16 | . 4 12 Haulers Intercepted . | . . . Recyclers Shooed . | . . . Parts Field Recycled . | . . . Retrieved Matter . | . . . Parts Self-Destructed . | . . . Prevented . | . . . Kills | -11 -10 -9 ------- Run | Yrd Mat Mat Combat Hostiles Destroyed 7 | . 1 6 Guns 7 | . 1 6 Classes Destroyed 4 | . 1 3 Watcher 1 | . . 1 Swarmer 4 | . . 4 Grunt 1 | . 1 . Sentry 2 | . . 2 Best Kill Streak 7 | . 1 7 Combat Bots Only 6 | . 1 6 Max Kills in Single Turn 1 | . 1 1 Gunslinging . | . . . Exploded . | . . . Melee . | . . . Uniques/NPCs Destroyed . | . . . Combat | -11 -10 -9 -------- Run | Yrd Mat Mat Hostile Shots Fired 258 | . 56 202 Missed 66 | . 12 54 Damage Taken 2089 | . 527 1562 Core 607 | . 198 409 Absorbed by Shields 63 | . . 63 Core Remaining (%) 60 | 100 20 . Volleys Fired 52 | . 15 37 Largest 2 | . 2 2 Hottest 85 | . 60 85 Shots Fired 77 | . 24 53 Gun 77 | . 24 53 Cannon . | . . . Launcher . | . . . Special . | . . . Kinetic 38 | . 15 23 Thermal 30 | . . 30 Explosive . | . . . Electromagnetic 9 | . 9 . Robot Hit Streak 9 | . 4 9 Robot Miss Streak 5 | . 3 5 Penetration Max . | . . . Secondary Targets 2 | . . 2 Max Gunslinging Chain 1 | . . 1 Shots Hit Robots 53 | . 15 38 Core Hits 26 | . 3 23 Critical Kills . | . . . Critical Parts Destroyed . | . . . Critical Strikes 1 | . . 1 Destroy 1 | . . 1 Melee Attacks . | . . . Impact . | . . . Slashing . | . . . Piercing . | . . . Sneak Attacks . | . . . Combat Hostiles . | . . . Follow-up Attacks . | . . . Damage Inflicted 593 | . 169 424 Guns 593 | . 169 424 Cannons . | . . . Explosions . | . . . Melee . | . . . Ramming . | . . . Kinetic 213 | . 89 124 Thermal 300 | . . 300 Explosive . | . . . Electromagnetic 80 | . 80 . Impact . | . . . Slashing . | . . . Piercing . | . . . Highest Corruption . | . . . Average Corruption . | . . . Corruption Purged . | . . . Corruption Blocked . | . . . Overload Shots . | . . . Overflow Damage . | . . . Projectiles . | . . . Explosions . | . . . Melee . | . . . Knockbacks . | . . . Impact . | . . . Kinetic . | . . . Secondary . | . . . Self-Inflicted Damage . | . . . Shots . | . . . Rammed . | . . . Targets Rammed . | . . . Kicked . | . . . Crushed . | . . . Highest Temperature 161 | . 56 161 Average Temperature 44 | . 18 52 Received Heat Transfer 816 | . 327 489 Siege Activations . | . . . Robots Corrupted . | . . . Combat Hostiles . | . . . Parts Fried . | . . . Impact Corruptions . | . . . Robots Melted . | . . . Combat Hostiles . | . . . Parts Melted 1 | . . 1 Heat Transferred 626 | . . 626 Parts Sabotaged . | . . . Parts Stolen . | . . . Parts Stripped . | . . . Power Chain Reactions . | . . . Alert | -11 -10 -9 ------- Run | Yrd Mat Mat Peak Influence 185 | . 96 185 Initial 21 | . . 21 Average 70 | . 37 94 Maximum Alert Level . | . . . Low Security (%) 100 | 100 100 100 Level 1 . | . . . Level 2 . | . . . Level 3 . | . . . Level 4 . | . . . Level 5 . | . . . High Security . | . . . Max Security . | . . . Squads Dispatched 3 | . 2 1 Investigation 2 | . 1 1 Extermination . | . . . Reinforcement 1 | . 1 . Assault . | . . . Garrison . | . . . Intercept . | . . . Searches Triggered . | . . . Construction Impeded . | . . . Haulers Reinforced . | . . . Active Scanning Responses . | . . . Cargo Convoy Interrupts . | . . . Stealth | -11 -10 -9 --------- Run | Yrd Mat Mat Distress Signals 1 | . . 1 Communications Jammed . | . . . Distress Signals . | . . . Times Spotted 19 | . 7 12 Peak Tracking Total 8 | . 4 8 Tactical Retreats 1 | . 1 . Traps | -11 -10 -9 ------- Run | Yrd Mat Mat Traps Triggered . | . . . Indirectly . | . . . Trap Hack Attempts . | . . . Triggered . | . . . Disarmed . | . . . Reprogrammed . | . . . Reused . | . . . Traps Extracted . | . . . Installed . | . . . Triggered . | . . . Machines | -11 -10 -9 ---------- Run | Yrd Mat Mat Machines Disabled 1 | . 1 . Max in Single Turn 1 | . 1 . Machines Repaired . | . . . Machines Dismantled . | . . . Machines Sabotaged . | . . . Overloaded Fab Kills . | . . . Hacking | -11 -10 -9 --------- Run | Yrd Mat Mat Machines Accessed 4 | . 3 1 Terminals 4 | . 3 1 Fabricators . | . . . Repair Stations . | . . . Recycling Units . | . . . Scanalyzers . | . . . Garrison Access . | . . . Total Hacks 12 | . 8 4 Successful 7 | . 4 3 Failed 5 | . 4 1 Catastrophic . | . . . Database Lockouts . | . . . Manual . | . . . Terminals 12 | . 8 4 Fabricators . | . . . Repair Stations . | . . . Recycling Units . | . . . Scanalyzers . | . . . Garrison Access . | . . . Terminal Hacks 7 | . 4 3 Record 2 | . 2 . Prototype ID Bank 1 | . 1 . Locate Traps 1 | . . 1 Dispatch Records 1 | . . 1 Recall Investigation 1 | . . 1 Zone Layout 1 | . 1 . Fabricator Hacks . | . . . Repair Station Hacks . | . . . Recycling Unit Hacks . | . . . Scanalyzer . | . . . Garrison Access Hacks . | . . . Unauthorized Hacks . | . . . Terminals . | . . . Fabricators . | . . . Repair Stations . | . . . Recycling Units . | . . . Scanalyzers . | . . . Garrison Access . | . . . Data Cores Recovered . | . . . Used . | . . . Hacking Detections 4 | . 3 1 Full Trace Events 3 | . 2 1 Feedback Events . | . . . Feedback Blocked . | . . . Robot Schematics Acquired . | . . . Robots Built . | . . . Authchips . | . . . Time . | . . . Total Robot Build Rating . | . . . Part Schematics Acquired . | . . . Parts Built . | . . . Authchips . | . . . Time . | . . . Total Part Build Rating . | . . . Parts Repaired . | . . . Time . | . . . Parts Recycled . | . . . Recycled Matter . | . . . Retrieved Matter . | . . . Retrieved Components . | . . . Parts Scanalyzed . | . . . Part Schematics Acquired . | . . . Parts Damaged . | . . . Bothacking | -11 -10 -9 ------------ Run | Yrd Mat Mat Used RIF Installer . | . . . Robots Hacked . | . . . Non-combat . | . . . Combat . | . . . Robot Hacks Applied . | . . . Relay Couplers Released . | . . . Fabnet Peak Effective % . | . . . Robots Rewired . | . . . Allies Hacked . | . . . Hacks Repelled . | . . . Allies | -11 -10 -9 -------- Run | Yrd Mat Mat Total Allies . | . . . Largest Group . | . . . Highest-Rated Group . | . . . Highest-Rated Ally . | . . . Total Orders . | . . . Ally Attacks . | . . . Total Damage . | . . . Kills . | . . . Allies Corrupted . | . . . Allies Melted . | . . . Intel | -11 -10 -9 ------- Run | Yrd Mat Mat Robot Analysis Total . | . . . Derelict Logs Recovered . | . . . Drone Launches . | . . . Drone Recoveries . | . . . Exploration | -11 -10 -9 ------------- Run | Yrd Mat Mat Turns Passed 593 | 55 162 376 Spaces Moved 323 | 34 120 169 Core 72 | 2 23 47 Treads 120 | . . 120 Legs . | . . . Wheels 129 | 32 97 . Hover 2 | . . 2 Flight . | . . . Fastest Speed 50 | 50 100 100 Average Speed 129 | 97 100 157 Slowest Speed 350 | 100 100 350 Overloaded Moves . | . . . Propulsion Burnouts . | . . . Robots Hopped . | . . . Cave-ins Triggered . | . . . Exploration Rate (%) 14 | 4 27 13 Regions Visited 2 Branch Regions . Pre-discovered Areas . | . . . Known Exits Taken . | . . . Unknown Exits Taken 2 | 1 1 . Scrap Searched . | . . . Spaces Dug . | . . . Terrain Destroyed . | . . . Melee . | . . . Projectile . | . . . AOE . | . . . Terrain Rammed . | . . . Walls Destroyed . | . . . Machines Disabled . | . . . Actions | -11 -10 -9 --------- Run | Yrd Mat Mat Total 425 | 54 141 230 Wait 10 | 4 5 1 Move 321 | 33 119 169 Hop . | . . . Pick Up 20 | 9 1 10 Fast Attach . | . . . Attach 20 | 6 1 13 Detach . | . . . Swap 2 | 2 . . Drop . | . . . Fire 52 | . 15 37 Melee . | . . . Ram . | . . . Kick . | . . . Crush . | . . . Escape Stasis . | . . . Rewire . | . . . Trap . | . . . Miscellaneous . | . . . Route ------- -11/Scrapyard -10/Materials -9/Materials History --------- Turn | Location | Event 8 | -11/Scrapyard | Discovered new exit (range 15) 56 | -11/Scrapyard | Entered Materials 199 | -10/Materials | Core integrity fell below 50% 204 | -10/Materials | Discovered new exit (range 14) 218 | -10/Materials | Entered another Materials area 218 | -9/Materials | Evolved 2 slots: Power x1, Utility x1 227 | -9/Materials | Lost 6 parts (1p2n1u2w) 311 | -9/Materials | Build established: Mutant 425 | -9/Materials | Core integrity fell below 50% 467 | -9/Materials | Lost 6 parts (1p2n1u2w) 575 | -9/Materials | Core integrity fell below 20% 594 | -9/Materials | Destroyed by G-34 Mercenary with Small Laser Last Messages --------------- 8x Security 4x Surveillance 4x Patrol 6x Transport >>Recall(Investigation) Establishing remote squad link... No tasked investigation squads found. ALERT: Suspicious activity at Terminal M009. Dispatching Investigation squad. K-01 Serf collects debris. Acquired Med. Storage Unit. Connecting with Scanalyzer... K-01 Serf collects debris. Sml. Storage Unit destroyed. Lgt. Assault Rifle destroyed. K-01 Serf collects debris. Lgt. Ion Engine destroyed. Lgt. Treads destroyed. Beam Rifle destroyed. Acquired Hover Unit. Map ----- +----------------------------------------------------+ | ?????????????????????????????????????????????????? | | ?????????????????????????????????????????????????? | | ?????????????????????????????????????????????????? | | ?????????????????????????????????????????????????? | | ?????????????????????????????????????????????????? | | ?????????????????????????????????????????????????? | | ?????????????????????????????????????????????????? | | ?????????????????????????????????????????????????? | | ?????????????????????????????????????????????????? | | ?????????????????????????????????????????????????? | | ??????????????^?? ?????????????????????????????? | | ????????????????# ?????????????????????????????? | | ????????????????# ?????????????????????????????? | | ????????????????# #????????????????????????????? | | ????????????????# ????????????????????????????? | | ????????????????# #????????????????????????????? | | ????????????????# #????????????????????????????? | | ????????#######?# #????????????????????????????? | | ????????# #?# #????????????????????????????? | | ????????# #?# #????????????????????????????? | | ???###### #?# #?###????????????????????????? | | ??? ?# ??# ### ###??????????????????????? | | ??" ?# ??# # #??????????????????????? | | ?""" ??# #### # "" #??????????????????????? | | """" ??# #T## # ""S #??????????????????????? | | """" ???# # "" @#??????????????????????? | | """ ???# + g #??????????????????????? | | ???# """ #gg ! #?^^?^?????????????????? | | ?? ???# """ # #?^?^^?????????????????? | | ??##"##### """ #######??????????????????????? | | ??# = """ ????????????????????? | | ??# =% % ????????????????????? | | ??# = ????????????????????? | | ??### #### ###+############????????????????????? | | #####+#### #???????????????????????????????????? | | # #???????????????????????????????????? | | # #???????????????????????????????????? | | # #???????????????????????????????????? | | # #???????????????????????????????????? | | # #???????????????????????????????????? | | + #???????????????????????????????????? | | # #???????????????????????????????????? | | # #???????????????????????????????????? | | ########## #???????????????????????????????????? | | #???????????????????????????????????? | | #???????????????????????????????????? | | #???????????????????????????????????? | | ### ###/######?????????????????????????????????? | | ??# ## #?????????????????????????????????? | | ??# ## #?????????????????????????????????? | +----------------------------------------------------+ Best States ------------- Heat Dissipation 35 Energy Generation 10 Energy Capacity 250 Matter Stores 300 Matter Capacity 300 Sight Range 16 Terrain Scan Density 10 Evasion (%) 40 Recoil Reduction 2 Item Schematics ----------------- None Robot Schematics ------------------ None Fabricated ------------ Nothing Alien Tech Used ----------------- None Achievements -------------- None Challenges ------------ None Game ------ Seed FireHugeBoomstick Manual? 0 Play Time 00:10:44 Cumulative 3.7 hours Start 2024.04.15 @ 12:59:32 End 2024.04.15 @ 13:09:33 Sessions 1 Manual Loads 0 Difficulty Rogue Special Mode None Game No. 6 Rogue 6 Adventurer 0 Explorer 0 Win Type - Total 0 Types 0/0/0/0/0/0/0/0/0 Lore% 4 Gallery% 8 Achievement% 9 Wizard Run 0 Options --------- Layout 1 ASCII 0 Keyboard 0 Movement Mouse Keybinds 0 Fullscreen 1 Font 24/Terminus Map View 50x35 Zoom Use 0% Tactical HUD 0 Map Filters NONE Filters NONE Steam 1 RUN: 47a9a1d8-8f2f-4320-a731-3068624de4b4